fUSD/lending_fUSD_20250904
["ID","MTS","AMOUNT","RATE_DAILY","PERIOD"]
[383523526,1756969850760,-400.0,0.00022191,2]
[383523527,1756969850769,-400.0,0.00022191,2]
[383523528,1756969850778,-400.0,0.00022191,2]
[383523529,1756969850787,-400.0,0.00022191,2]
[383523530,1756969850796,-400.0,0.00022191,2]
[383523531,1756969850805,-400.0,0.00022191,2]
[383523532,1756969850814,-400.0,0.00022191,2]
[383523533,1756969850823,-601.04,0.00022191,2]
[383523534,1756969850832,-400.0,0.00022191,2]
[383523535,1756969850846,-519.59454501,0.00022191,2]
[383523536,1756969850856,-400.0,0.00022191,2]
[383523537,1756969850865,-400.0,0.00022191,2]
[383523538,1756969850875,-403.94,0.00022191,2]
[383523539,1756969850885,-400.0,0.00022191,2]
[383523540,1756969850894,-400.0,0.00022191,2]
[383523541,1756969850903,-400.0,0.00022191,2]
[383523542,1756969850913,-400.0,0.00022191,2]
[383523543,1756969850922,-400.0,0.00022191,2]
[383523544,1756969850931,-400.0,0.00022191,2]
[383523545,1756969850940,-400.0,0.00022191,2]
[383523546,1756969850949,-227.53680956,0.00022191,2]
[383523547,1756969850958,-411.18861576,0.00022191,2]
[383523548,1756969850967,-400.0,0.00022191,2]
[383523549,1756969850976,-400.0,0.00022191,2]
[383523550,1756969850985,-241.93706407,0.00022191,2]
[383523551,1756969850994,-406.85449066,0.00022191,2]
[383523552,1756969851003,-400.0,0.00022191,2]
[383523553,1756969851012,-400.0,0.00022191,2]
[383523554,1756969851021,-400.0,0.00022191,2]
[383523555,1756969851030,-406.71190684,0.00022191,2]
[383523556,1756969851039,-400.0,0.00022191,2]
[383523557,1756969851058,-400.0,0.00022191,2]
[383523558,1756969851068,-400.0,0.00022191,2]
[383523559,1756969851077,-400.0,0.00022191,2]
[383523560,1756969851087,-400.0,0.00022191,2]
[383523561,1756969851097,-400.0,0.00022191,2]
[383523562,1756969851106,-519.68,0.00022191,2]
[383523563,1756969851115,-400.0,0.00022191,2]
[383523564,1756969851125,-400.0,0.00022191,2]
[383523565,1756969851134,-400.0,0.00022191,2]
[383523566,1756969851143,-400.0,0.00022191,2]
[383523567,1756969851152,-400.0,0.00022191,2]
[383523568,1756969851161,-400.0,0.00022191,2]
[383523569,1756969851170,-400.0,0.00022191,2]
[383523570,1756969851180,-400.0,0.00022191,2]
[383523571,1756969851189,-400.0,0.00022191,2]
[383523572,1756969851198,-400.0,0.00022191,2]
[383523573,1756969851207,-400.0,0.00022191,2]
[383523574,1756969851216,-400.0,0.00022191,2]
[383523575,1756969851225,-400.0,0.00022191,2]
[383523576,1756969851235,-400.0,0.00022191,2]
[383523577,1756969851244,-400.0,0.00022191,2]
[383523578,1756969851253,-400.0,0.00022191,2]
[383523579,1756969851262,-400.0,0.00022191,2]
[383523580,1756969851272,-400.0,0.00022191,2]
[383523581,1756969851282,-400.0,0.00022191,2]
[383523582,1756969851291,-400.0,0.00022191,2]
[383523583,1756969851301,-411.47662404,0.00022191,2]
[383523584,1756969851310,-400.0,0.00022191,2]
[383523585,1756969851320,-404.57719068,0.00022191,2]
[383523586,1756969851329,-400.0,0.00022191,2]
[383523587,1756969851338,-400.0,0.00022191,2]
[383523588,1756969851348,-400.0,0.00022191,2]
[383523589,1756969851358,-400.0,0.00022191,2]
[383523590,1756969851367,-400.0,0.00022191,2]
[383523591,1756969851377,-400.0,0.00022191,2]
[383523592,1756969851386,-302.087652,0.00022191,2]
[383523593,1756969851396,-400.0,0.00022191,2]
[383523594,1756969851405,-403.49352411,0.00022191,2]
[383523595,1756969851414,-400.0,0.00022191,2]
[383523596,1756969851423,-400.0,0.00022191,2]
[383523597,1756969851433,-400.0,0.00022191,2]
[383523598,1756969851442,-404.64509131,0.00022191,2]
[383523599,1756969851451,-400.0,0.00022191,2]
[383523600,1756969851460,-400.0,0.00022191,2]
[383523601,1756969851470,-2171.47,0.00022191,2]
[383523602,1756969851479,-400.0,0.00022191,2]
[383523603,1756969851489,-400.0,0.00022191,2]
[383523604,1756969851498,-400.0,0.00022191,2]
[383523605,1756969851507,-400.0,0.00022191,2]
[383523606,1756969851516,-403.7536954,0.00022191,2]
[383523607,1756969851525,-402.91022107,0.00022191,2]
[383523608,1756969851535,-400.0,0.00022191,2]
[383523609,1756969851544,-298.980232,0.00022191,2]
[383523610,1756969851552,-400.0,0.00022191,2]
[383523611,1756969851562,-400.0,0.00022191,2]
[383523612,1756969851571,-400.0,0.00022191,2]
[383523613,1756969851581,-400.0,0.00022191,2]
[383523614,1756969851590,-400.0,0.00022191,2]
[383523615,1756969851600,-400.0,0.00022191,2]
[383523616,1756969851609,-400.0,0.00022191,2]
[383523617,1756969851618,-400.0,0.00022191,2]
[383523618,1756969851627,-400.0,0.00022191,2]
[383523619,1756969851636,-684.42,0.00022191,2]
[383523620,1756969851645,-400.0,0.00022191,2]
[383523621,1756969851655,-400.0,0.00022191,2]
[383523622,1756969851664,-403.34852968,0.00022191,2]
[383523623,1756969851672,-400.0,0.00022191,2]
[383523624,1756969851682,-400.0,0.00022191,2]
[383523625,1756969851691,-400.0,0.00022191,2]
[383523626,1756969851700,-400.0,0.00022191,2]
[383523627,1756969851709,-400.0,0.00022191,2]
[383523628,1756969851718,-400.0,0.00022191,2]
[383523629,1756969851728,-400.0,0.00022191,2]
[383523630,1756969851737,-403.78449483,0.00022191,2]
[383523631,1756969851746,-752.36,0.00022191,2]
[383523632,1756969851755,-400.0,0.00022191,2]
[383523633,1756969851763,-500.66,0.00022191,2]
[383523634,1756969851773,-400.0,0.00022191,2]
[383523635,1756969851782,-400.0,0.00022191,2]
[383523636,1756969851790,-400.0,0.00022191,2]
[383523637,1756969851799,-400.0,0.00022191,2]
[383523638,1756969851808,-400.0,0.00022191,2]
[383523639,1756969851817,-1082.68,0.00022191,2]
[383523640,1756969851826,-400.0,0.00022191,2]
[383523641,1756969851838,-400.0,0.00022191,2]
[383523642,1756969851849,-400.0,0.00022191,2]
[383523643,1756969851859,-400.0,0.00022191,2]
[383523644,1756969851868,-2148.64,0.00022191,2]
[383523645,1756969851878,-400.0,0.00022191,2]
[383523646,1756969851887,-710.29,0.00022191,2]
[383523647,1756969851896,-400.0,0.00022191,2]
[383523648,1756969851905,-1000.0,0.00022191,2]
[383523649,1756969851916,-205.1963403,0.00022191,2]
[383523650,1756969851925,-400.0,0.00022191,2]
[383523651,1756969851934,-400.0,0.00022191,2]
[383523652,1756969851944,-400.0,0.00022191,2]
[383523653,1756969851953,-400.0,0.00022191,2]
[383523654,1756969851962,-400.0,0.00022191,2]
[383523655,1756969851971,-473.72,0.00022191,2]
[383523656,1756969851981,-400.0,0.00022191,2]
[383523657,1756969851991,-487.98,0.00022191,2]
[383523658,1756969852000,-400.0,0.00022191,2]
[383523659,1756969852009,-400.0,0.00022191,2]
[383523660,1756969852019,-400.0,0.00022191,2]
[383523661,1756969852028,-971.55,0.00022191,2]
[383523662,1756969852038,-400.0,0.00022191,2]
[383523663,1756969852047,-400.0,0.00022191,2]
[383523664,1756969852057,-2253.1,0.00022191,2]
[383523665,1756969852067,-400.0,0.00022191,2]
[383523666,1756969852076,-400.0,0.00022191,2]
[383523667,1756969852085,-927.78,0.00022191,2]
[383523668,1756969852095,-400.0,0.00022191,2]
[383523669,1756969852104,-400.0,0.00022191,2]
[383523670,1756969852114,-400.0,0.00022191,2]
[383523671,1756969852123,-400.0,0.00022191,2]
[383523672,1756969852132,-409.02142497,0.00022191,2]
[383523673,1756969852142,-400.0,0.00022191,2]
[383523674,1756969852152,-400.0,0.00022191,2]
[383523675,1756969852161,-403.83121109,0.00022191,2]
[383523676,1756969852170,-400.0,0.00022191,2]
[383523677,1756969852180,-476.86665577,0.00022191,2]
[383523678,1756969852189,-400.0,0.00022191,2]
[383523679,1756969852199,-587.43,0.00022191,2]
[383523680,1756969852207,-400.0,0.00022191,2]
[383523681,1756969852217,-422.38696375,0.00022191,2]
[383523682,1756969852227,-400.0,0.00022191,2]
[383523683,1756969852236,-819.0,0.00022191,2]
[383523684,1756969852246,-400.0,0.00022191,2]
[383523685,1756969852255,-400.0,0.00022191,2]
[383523686,1756969852265,-400.0,0.00022191,2]
[383523687,1756969852275,-400.0,0.00022191,2]
[383523688,1756969852284,-2246.09,0.00022191,2]
[383523689,1756969852294,-400.0,0.00022191,2]
[383523690,1756969852303,-402.69563569,0.00022191,2]
[383523691,1756969852312,-400.0,0.00022191,2]
[383523692,1756969852321,-400.0,0.00022191,2]
[383523693,1756969852330,-400.0,0.00022191,2]
[383523694,1756969852339,-400.0,0.00022191,2]
[383523695,1756969852350,-400.0,0.00022191,2]
[383523696,1756969852359,-423.89,0.00022191,2]
[383523697,1756969852368,-400.0,0.00022191,2]
[383523698,1756969852378,-406.25,0.00022191,2]
[383523699,1756969852387,-400.0,0.00022191,2]
[383523700,1756969852396,-400.0,0.00022191,2]
[383523701,1756969852405,-703.63,0.00022191,2]
[383523702,1756969852416,-400.0,0.00022191,2]
[383523703,1756969852425,-400.0,0.00022191,2]
[383523704,1756969852434,-400.0,0.00022191,2]
[383523705,1756969852444,-400.0,0.00022191,2]
[383523706,1756969852453,-400.0,0.00022191,2]
[383523707,1756969852462,-400.0,0.00022191,2]
[383523708,1756969852471,-400.0,0.00022191,2]
[383523709,1756969852481,-400.0,0.00022191,2]
[383523710,1756969852491,-400.0,0.00022191,2]
[383523711,1756969852500,-400.0,0.00022191,2]
[383523712,1756969852509,-400.0,0.00022191,2]
[383523713,1756969852518,-355.41167431,0.00022191,2]
[383523714,1756969852527,-796.57,0.00022191,2]
[383523715,1756969852536,-400.0,0.00022191,2]
[383523716,1756969852546,-400.0,0.00022191,2]
[383523717,1756969852555,-400.0,0.00022191,2]
[383523718,1756969852564,-400.0,0.00022191,2]
[383523719,1756969852573,-449.56572985,0.00022191,2]
[383523720,1756969852582,-400.0,0.00022191,2]
[383523721,1756969852591,-404.14097408,0.00022191,2]
[383523722,1756969852600,-400.0,0.00022191,2]
[383523723,1756969852609,-400.0,0.00022191,2]
[383523724,1756969852619,-400.0,0.00022191,2]
[383523725,1756969852628,-650.25,0.00022191,2]
[383523726,1756969852637,-400.0,0.00022191,2]
[383523727,1756969852646,-400.0,0.00022191,2]
[383523728,1756969852655,-400.0,0.00022191,2]
[383523729,1756969852664,-400.0,0.00022191,2]
[383523730,1756969852673,-400.0,0.00022191,2]
[383523731,1756969852682,-400.0,0.00022191,2]
[383523732,1756969852691,-1748.73,0.00022191,2]
[383523733,1756969852700,-400.0,0.00022191,2]
[383523734,1756969852710,-418.52461681,0.00022191,2]
[383523735,1756969852719,-400.0,0.00022191,2]
[383523736,1756969852729,-1053.62,0.00022191,2]
[383523737,1756969852738,-400.0,0.00022191,2]
[383523738,1756969852747,-400.0,0.00022191,2]
[383523739,1756969852756,-400.0,0.00022191,2]
[383523740,1756969852765,-405.99502777,0.00022191,2]
[383523741,1756969852775,-501.67,0.00022191,2]
[383523742,1756969852784,-757.79,0.00022191,2]
[383523743,1756969852793,-400.0,0.00022191,2]
[383523744,1756969852802,-400.0,0.00022191,2]
[383523745,1756969852811,-336.32432892,0.00022191,2]
[383523746,1756969852820,-401.60545662,0.00022191,2]
[383523747,1756969852830,-509.83,0.00022191,2]
[383523748,1756969852845,-400.0,0.00022191,2]
[383523749,1756969852855,-400.0,0.00022191,2]
[383523750,1756969852864,-799.28,0.00022191,2]
[383523751,1756969852873,-208.9495766,0.00022191,2]
[383523752,1756969852882,-400.0,0.00022191,2]
[383523753,1756969852891,-400.0,0.00022191,2]
[383523754,1756969852900,-400.0,0.00022191,2]
[383523755,1756969852909,-400.0,0.00022191,2]
[383523756,1756969852919,-400.0,0.00022191,2]
[383523757,1756969852928,-837.17,0.00022191,2]
[383523758,1756969852937,-400.0,0.00022191,2]
[383523759,1756969852947,-463.0,0.00022191,2]
[383523760,1756969852956,-1157.91,0.00022191,2]
[383523761,1756969852965,-724.51,0.00022191,2]
[383523762,1756969852975,-1507.89,0.00022191,2]
[383523763,1756969852984,-119.61020645,0.00022191,2]
[383523764,1756969853013,-315.51979355,0.00022191,2]
[383523765,1756969853026,-4683.02,0.00022191,2]
[383523766,1756969853036,-400.0,0.00022191,2]
[383523767,1756969853046,-530.85,0.00022191,2]
[383523768,1756969853055,-400.0,0.00022191,2]
[383523769,1756969853065,-400.0,0.00022191,2]
[383523770,1756969853074,-400.0,0.00022191,2]
[383523771,1756969853083,-539.8,0.00022191,2]
[383523772,1756969853093,-400.0,0.00022191,2]
[383523773,1756969853309,-1399.59,0.00022191,2]
[383523774,1756969853318,-400.0,0.00022191,2]
[383523775,1756969853327,-400.0,0.00022191,2]
[383523776,1756969853336,-400.0,0.00022191,2]
[383523777,1756969853346,-610.89,0.00022191,2]
[383523778,1756969853355,-400.0,0.00022191,2]
[383523779,1756969853363,-406.57,0.00022191,2]
[383523780,1756969853372,-400.0,0.00022191,2]
[383523781,1756969853381,-952.9,0.00022191,2]
[383523782,1756969853391,-400.0,0.00022191,2]
[383523783,1756969853400,-400.0,0.00022191,2]
[383523784,1756969853409,-2750.34,0.00022191,2]
[383523785,1756969853418,-400.0,0.00022191,2]
[383523786,1756969853427,-848.35,0.00022191,2]
[383523787,1756969853437,-400.0,0.00022191,2]
[383523788,1756969853446,-522.1,0.00022191,2]
[383523789,1756969853456,-400.0,0.00022191,2]
[383523790,1756969853465,-400.0,0.00022191,2]
[383523791,1756969853474,-1831.58,0.00022191,2]
[383523792,1756969853485,-752.89,0.00022191,2]
[383523793,1756969853494,-430.59,0.00022191,2]
[383523794,1756969853503,-400.0,0.00022191,2]
[383523795,1756969853512,-429.92,0.00022191,2]
[383523796,1756969853522,-400.0,0.00022191,2]
[383523797,1756969853531,-400.0,0.00022191,2]
[383523798,1756969853540,-400.0,0.00022191,2]
[383523799,1756969853549,-400.0,0.00022191,2]
[383523800,1756969853559,-400.0,0.00022191,2]
[383523801,1756969853568,-403.26812543,0.00022191,2]
[383523802,1756969853577,-400.0,0.00022191,2]
[383523803,1756969853586,-463.98171669,0.00022191,2]
[383523804,1756969853596,-401.91641782,0.00022191,2]
[383523805,1756969853605,-400.0,0.00022191,2]
[383523806,1756969853614,-400.0,0.00022191,2]
[383523807,1756969853624,-529.46,0.00022191,2]
[383523808,1756969853633,-409.68310856,0.00022191,2]
[383523809,1756969853642,-406.36326815,0.00022191,2]
[383523810,1756969853652,-400.0,0.00022191,2]
[383523811,1756969853661,-482.43,0.00022191,2]
[383523812,1756969853671,-560.89,0.00022191,2]
[383523813,1756969853680,-400.0,0.00022191,2]
[383523814,1756969853689,-400.0,0.00022191,2]
[383523815,1756969853698,-400.0,0.00022191,2]
[383523816,1756969853708,-400.0,0.00022191,2]
[383523817,1756969853717,-400.0,0.00022191,2]
[383523818,1756969853727,-1080.25,0.00022191,2]
[383523819,1756969853736,-400.0,0.00022191,2]
[383523820,1756969853745,-400.0,0.00022191,2]
[383523821,1756969853754,-400.0,0.00022191,2]
[383523822,1756969853763,-400.0,0.00022191,2]
[383523823,1756969853773,-400.0,0.00022191,2]
[383523824,1756969853782,-612.44,0.00022191,2]
[383523825,1756969853791,-400.0,0.00022191,2]
[383523826,1756969853800,-400.0,0.00022191,2]
[383523827,1756969853810,-400.0,0.00022191,2]
[383523828,1756969853819,-742.06,0.00022191,2]
[383523829,1756969853828,-400.0,0.00022191,2]
[383523830,1756969853839,-400.0,0.00022191,2]
[383523831,1756969853849,-400.0,0.00022191,2]
[383523832,1756969853858,-841.49,0.00022191,2]
[383523833,1756969853867,-324.91370265,0.00022191,2]
[383523834,1756969853876,-400.0,0.00022191,2]
[383523835,1756969853887,-400.0,0.00022191,2]
[383523836,1756969853896,-892.39,0.00022191,2]
[383523837,1756969853906,-400.0,0.00022191,2]
[383523838,1756969853917,-400.0,0.00022191,2]
[383523839,1756969853927,-400.0,0.00022191,2]
[383523840,1756969853936,-400.0,0.00022191,2]
[383523841,1756969853945,-400.0,0.00022191,2]
[383523842,1756969853954,-400.0,0.00022191,2]
[383523843,1756969853964,-400.0,0.00022191,2]
[383523844,1756969853973,-1081.07,0.00022191,2]
[383523845,1756969853983,-400.0,0.00022191,2]
[383523846,1756969853992,-400.0,0.00022191,2]
[383523847,1756969854002,-400.0,0.00022191,2]
[383523848,1756969854011,-1077.81,0.00022191,2]
[383523849,1756969854020,-400.0,0.00022191,2]
[383523850,1756969854029,-400.0,0.00022191,2]
[383523851,1756969854038,-416.17,0.00022191,2]
[383523852,1756969854048,-1978.69,0.00022191,2]
[383523853,1756969854057,-400.0,0.00022191,2]
[383523854,1756969854066,-400.0,0.00022191,2]
[383523855,1756969854075,-400.0,0.00022191,2]
[383523856,1756969854084,-747.8,0.00022191,2]
[383523857,1756969854094,-400.0,0.00022191,2]
[383523858,1756969854103,-3031.56,0.00022191,2]
[383523859,1756969854112,-413.98387416,0.00022191,2]
[383523860,1756969854121,-400.0,0.00022191,2]
[383523861,1756969854130,-1401.54,0.00022191,2]
[383523862,1756969854139,-1962.82,0.00022191,2]
[383523863,1756969854148,-400.0,0.00022191,2]
[383523864,1756969854157,-400.0,0.00022191,2]
[383523865,1756969854167,-206.93,0.00022191,2]
[383523866,1756969854175,-400.0,0.00022191,2]
[383523867,1756969854185,-400.0,0.00022191,2]
[383523868,1756969854194,-400.0,0.00022191,2]
[383523869,1756969854203,-566.99,0.00022191,2]
[383523870,1756969854212,-400.0,0.00022191,2]
[383523871,1756969854222,-400.0,0.00022191,2]
[383523872,1756969854232,-400.0,0.00022191,2]
[383523873,1756969854241,-400.0,0.00022191,2]
[383523874,1756969854250,-400.0,0.00022191,2]
[383523875,1756969854259,-400.0,0.00022191,2]
[383523876,1756969854268,-400.0,0.00022191,2]
[383523877,1756969854277,-440.48,0.00022191,2]
[383523878,1756969854286,-400.0,0.00022191,2]
[383523879,1756969854295,-400.0,0.00022191,2]
[383523880,1756969854305,-1553.11,0.00022191,2]
[383523881,1756969854315,-400.0,0.00022191,2]
[383523882,1756969854329,-400.0,0.00022191,2]
[383523883,1756969854339,-500.73570225,0.00022191,2]
[383523884,1756969854348,-400.0,0.00022191,2]
[383523885,1756969854357,-400.0,0.00022191,2]
[383523886,1756969854366,-290.75730141,0.00022191,2]
[383523887,1756969854375,-518.19,0.00022191,2]
[383523888,1756969854384,-400.0,0.00022191,2]
[383523889,1756969854393,-400.0,0.00022191,2]
[383523890,1756969854402,-1345.38,0.00022191,2]
[383523891,1756969854411,-714.46,0.00022191,2]
[383523892,1756969854420,-400.0,0.00022191,2]
[383523893,1756969854430,-400.0,0.00022191,2]
[383523894,1756969854439,-400.0,0.00022191,2]
[383523895,1756969854452,-400.0,0.00022191,2]
[383523896,1756969854461,-400.0,0.00022191,2]
[383523897,1756969854470,-400.0,0.00022191,2]
[383523898,1756969854479,-403.32903263,0.00022191,2]
[383523899,1756969854488,-400.0,0.00022191,2]
[383523900,1756969854497,-400.0,0.00022191,2]
[383523901,1756969854507,-412.41,0.00022191,2]
[383523902,1756969854516,-496.7,0.00022191,2]
[383523903,1756969854525,-400.0,0.00022191,2]
[383523904,1756969854534,-1477.4,0.00022191,2]
[383523905,1756969854544,-400.0,0.00022191,2]
[383523906,1756969854553,-400.0,0.00022191,2]
[383523907,1756969854564,-809.71,0.00022191,2]
[383523908,1756969854574,-400.0,0.00022191,2]
[383523909,1756969854584,-400.0,0.00022191,2]
[383523910,1756969854594,-405.95797937,0.00022191,2]
[383523911,1756969854604,-514.64478986,0.00022198,2]
[383523912,1756969854613,-212.59699798,0.00022198,2]
[383523913,1756969854623,-160.0,0.00022198,2]
[383523914,1756969854632,-160.0,0.00022198,2]
[383523915,1756969854641,-160.0,0.00022198,2]
[383523916,1756969854651,-150.16000767,0.00022211,2]
[383523917,1756969854660,-277.35679052,0.00022216,2]
[383523918,1756969854669,-2500.0,0.00022365,2]
[383523919,1756969854679,-2500.0,0.00022365,2]
[383523920,1756969854689,-1312.21882388,0.00022382,2]
[383523921,1756969854698,-150.0,0.00022389,2]
[383523922,1756969854708,-156.67306377,0.00022389,2]
[383523923,1756969854717,-150.00000001,0.00022389,2]
[383523924,1756969854726,-514.38911199,0.00022455,2]
[383523925,1756969854736,-1173.0,0.00022464,2]
[383523926,1756969854745,-500.0,0.00022464,2]
[383523927,1756969854755,-507.10200588,0.00022464,2]
[383523928,1756969854764,-500.0,0.00022464,2]
[383523929,1756969854773,-400.0,0.00022464,2]
[383523930,1756969854783,-1039.2,0.00022464,2]
[383523931,1756969854792,-1472.04,0.00022464,2]
[383523932,1756969854802,-400.0,0.00022464,2]
[383523933,1756969854812,-400.0,0.00022464,2]
[383523934,1756969854822,-500.0,0.00022464,2]
[383523935,1756969854832,-400.0,0.00022465,2]
[383523936,1756969854846,-400.0,0.00022465,2]
[383523937,1756969854855,-400.0,0.00022465,2]
[383523938,1756969854864,-400.0,0.00022465,2]
[383523939,1756969854873,-400.0,0.00022465,2]
[383523940,1756969854882,-425.9992252,0.00022465,2]
[383523941,1756969854891,-400.0,0.00022465,2]
[383523942,1756969854900,-400.0,0.00022465,2]
[383523943,1756969854909,-373.86,0.00022465,2]
[383523944,1756969854919,-153.494755,0.00022465,2]
[383523945,1756969854928,-432.29,0.00022465,2]
[383523946,1756969854937,-400.0,0.00022465,2]
[383523947,1756969854946,-400.0,0.00022465,2]
[383523948,1756969854955,-400.0,0.00022465,2]
[383523949,1756969854964,-539.62,0.00022465,2]
[383523950,1756969854973,-246.14,0.00022465,2]
[383523951,1756969854983,-390.51274539,0.00022465,2]
[383523952,1756969854991,-400.0,0.00022465,2]
[383523953,1756969855001,-400.0,0.00022465,2]
[383523954,1756969855010,-400.0,0.00022465,2]
[383523955,1756969855019,-406.74677372,0.00022465,2]
[383523956,1756969855028,-499.78057925,0.00022465,2]
[383523957,1756969855038,-400.0,0.00022465,2]
[383523958,1756969855047,-400.0,0.00022465,2]
[383523959,1756969855056,-193.53892676,0.00022465,2]
[383523960,1756969855065,-400.0,0.00022465,2]
[383523961,1756969855074,-400.0,0.00022465,2]
[383523962,1756969855083,-400.0,0.00022465,2]
[383523963,1756969855092,-311.8511453,0.00022465,2]
[383523964,1756969855101,-400.0,0.00022465,2]
[383523965,1756969855112,-297.87026024,0.00022465,2]
[383523966,1756969855121,-343.61350986,0.00022465,2]
[383523967,1756969855136,-56.38649014,0.00022465,2]
[383523968,1756969855145,-400.0,0.00022465,2]
[383523969,1756969855154,-408.04916977,0.00022465,2]
[383523970,1756969855163,-400.0,0.00022465,2]
[383523971,1756969855172,-230.81438289,0.00022465,2]
[383523972,1756969855188,-169.18561711,0.00022465,2]
[383523973,1756969855197,-165.60133011,0.00022465,2]
[383523974,1756969855211,-234.39866989,0.00022465,2]
[383523975,1756969855220,-256.63737981,0.00022465,2]
[383523976,1756969855231,-196.59629807,0.00022465,2]
[383523977,1756969855241,-498.66,0.00022465,2]
[383523978,1756969855250,-53.18475161,0.00022465,2]
[383523979,1756969855261,-346.81524839,0.00022465,2]
[383523980,1756969855271,-434.06,0.00022465,2]
[383523981,1756969855280,-400.0,0.00022465,2]
[383523982,1756969855289,-400.0,0.00022465,2]
[383523983,1756969855299,-432.45,0.00022465,2]
[383523984,1756969855307,-239.03904219,0.00022465,2]
[383523985,1756969855316,-115.3014006,0.00022465,2]
[383523986,1756969855349,-216.5285994,0.00022465,2]
[383523987,1756969855358,-118.73720605,0.00022465,2]
[383523988,1756969855370,-134.12279395,0.00022465,2]
[383523989,1756969855380,-400.0,0.00022465,2]
[383523990,1756969855389,-400.0,0.00022465,2]
[383523991,1756969855398,-400.0,0.00022465,2]
[383523992,1756969855407,-400.0,0.00022465,2]
[383523993,1756969855417,-400.0,0.00022465,2]
[383523994,1756969855426,-400.0,0.00022465,2]
[383523995,1756969855435,-400.0,0.00022465,2]
[383523996,1756969855444,-400.0,0.00022465,2]
[383523997,1756969855454,-614.33348735,0.00022465,2]
[383523998,1756969855466,-300.51651265,0.00022465,2]
[383523999,1756969855475,-400.0,0.00022465,2]
[383524000,1756969855484,-400.0,0.00022465,2]
[383524001,1756969855493,-400.0,0.00022465,2]
[383524002,1756969855502,-400.0,0.00022465,2]
[383524003,1756969855511,-400.0,0.00022465,2]
[383524004,1756969855521,-494.41953131,0.00022465,2]
[383524005,1756969855530,-400.0,0.00022465,2]
[383524006,1756969855539,-400.0,0.00022465,2]
[383524007,1756969855548,-400.0,0.00022465,2]
[383524008,1756969855557,-400.0,0.00022465,2]
[383524009,1756969855566,-400.0,0.00022465,2]
[383524010,1756969855576,-400.0,0.00022465,2]
[383524011,1756969855585,-400.0,0.00022465,2]
[383524012,1756969855595,-400.0,0.00022465,2]
[383524013,1756969855604,-400.0,0.00022465,2]
[383524014,1756969855662,-400.0,0.00022465,2]
[383524015,1756969855671,-335.34304644,0.00022465,2]
[383524016,1756969855680,-400.0,0.00022465,2]
[383524017,1756969855689,-400.0,0.00022465,2]
[383524018,1756969855698,-507.96185655,0.00022465,2]
[383524019,1756969855707,-400.0,0.00022465,2]
[383524020,1756969855716,-400.0,0.00022465,2]
[383524021,1756969855725,-400.0,0.00022465,2]
[383524022,1756969855735,-400.0,0.00022465,2]
[383524023,1756969855744,-400.0,0.00022465,2]
[383524024,1756969855753,-400.0,0.00022465,2]
[383524025,1756969855762,-400.0,0.00022465,2]